bitfinex-derivatives/quotes_ETHF0:USTF0_20251210
["timestamp","ask_amount","ask_price","bid_price","bid_amount"]
[1765354741530,3.2078,3332.7,3332.6,1.41930237]
[1765354741736,0.00224291,3333.1,3333.0,1.8447]
[1765354742337,0.00224291,3333.1,3333.0,5.0525]
[1765354742633,0.0045039,3333.4,3333.3,1.4168]
[1765354743530,3.552,3334.2,3334.1,1.4168]
[1765354743531,3.8967,3334.2,3334.1,1.4168]
[1765354743733,3.2078,3334.2,3334.1,1.4168]
[1765354743926,3.21080558,3334.2,3334.1,1.4168]
[1765354744131,0.00300558,3334.2,3334.1,1.4168]
[1765354745037,0.69190558,3334.2,3334.1,1.4168]
[1765354746932,0.00300558,3334.2,3334.1,1.4168]
[1765354747739,0.69190558,3334.2,3334.1,1.4168]
[1765354748041,1.5542,3333.9,3333.8,0.7334039]
[1765354748240,1.5542,3333.9,3333.8,1.5024039]
[1765354748842,1.5542,3333.9,3333.8,0.7334039]
[1765354749042,1.5542,3333.9,3333.8,1.5024039]
[1765354753348,1.5542,3333.9,3333.8,0.7334039]
[1765354754550,1.5542,3333.9,3333.8,0.0045039]
[1765354757844,4.762,3333.9,3333.8,0.0045039]
[1765354759754,5.40284361,3333.9,3333.8,0.0045039]
[1765354762546,5.40894361,3333.9,3333.8,0.7352039]
[1765354762747,5.40894361,3333.9,3333.8,0.0045039]
[1765354773349,5.40894361,3333.9,3333.8,1.4661039]
[1765354773549,4.64244361,3333.9,3333.8,1.4661039]
[1765354773753,3.84864361,3333.9,3333.8,1.4661039]
[1765354773953,6.31492594,3333.9,3333.8,0.0045039]
[1765354774750,6.31492594,3333.9,3333.0,0.4279]
[1765354775053,4.7498,3333.5,3333.4,0.7307]
[1765354775247,5.39064361,3333.5,3333.4,0.7307]
[1765354775455,5.39064361,3333.5,3333.0,0.4279]
[1765354775654,2.18284361,3333.4,3333.3,0.7307]
[1765354775848,1.542,3333.1,3333.0,1.8895]
[1765354776553,1.542,3333.1,3333.0,1.1586]
[1765354776960,1.542,3333.1,3333.0,1.8895]
[1765354778760,1.542,3333.1,3333.0,0.4279]
[1765354778962,1.4499,3333.0,3332.9,0.0045039]
[1765354779261,2.09252301,3333.0,3332.9,0.0045039]
[1765354779562,5.30032301,3333.0,3332.9,0.0045039]
[1765354781359,5.30032301,3333.0,3332.9,0.6748039]
[1765354784758,6.22508042,3333.0,3332.9,0.6748039]
[1765354785167,6.22508042,3333.0,3332.9,0.0045039]
[1765354785361,1.4499,3332.6,3332.5,0.4158]
[1765354785566,1.64105741,3332.6,3332.5,1.7743]
[1765354785863,1.64105741,3332.6,3332.0,0.446]
[1765354785864,0.7163,3332.1,3332.0,1.8045]
[1765354786367,0.7163,3332.1,3332.0,1.80676353]
[1765354786559,1.4544039,3332.4,3332.3,0.6703]
[1765354786758,1.4544039,3332.4,3332.3,1.3585]
[1765354786958,1.4544039,3332.4,3332.3,0.6703]
[1765354787566,1.4544039,3332.4,3332.3,1.3585]
[1765354787766,1.4544039,3332.4,3332.3,0.6703]
[1765354788469,0.7163,3332.1,3332.0,1.80676353]
[1765354788767,1.4499,3332.1,3332.0,1.80676353]
[1765354789168,0.7163,3332.3,3332.2,1.3585]
[1765354789367,0.7208039,3332.4,3332.3,1.3585]
[1765354790364,1.4499,3332.1,3332.0,0.44826353]
[1765354790668,2.37465741,3332.1,3332.0,1.11856353]
[1765354790861,2.37465741,3332.1,3332.0,1.80676353]
[1765354791471,0.7163,3332.1,3332.0,1.80676353]
[1765354791870,1.4499,3332.1,3332.0,1.80676353]
[1765354793063,0.7163,3332.1,3332.0,1.80676353]
[1765354794969,1.4499,3332.1,3332.0,1.80676353]
[1765354795272,2.37465741,3332.1,3332.0,1.11856353]
[1765354795460,2.37465741,3332.1,3332.0,0.00226353]
[1765354795665,1.4499,3331.8,3331.7,0.0045039]
[1765354795868,5.58245741,3331.8,3331.7,0.0045039]
[1765354796872,5.58554593,3331.8,3331.7,0.00735807]
[1765354797279,4.66078852,3331.8,3331.7,1.36585807]
[1765354797472,1.45298852,3331.8,3331.7,1.36585807]
[1765354797680,0.71938852,3331.8,3331.7,1.36585807]
[1765354797869,0.00308852,3331.8,3331.7,1.36585807]
[1765354798174,1.45298852,3331.8,3331.7,0.00735807]
[1765354798470,5.58554593,3331.8,3331.7,0.00735807]
[1765354800671,4.66078852,3331.8,3331.7,0.00735807]
[1765354800871,5.58554593,3331.8,3331.7,0.00735807]
[1765354802170,4.66078852,3331.8,3331.7,0.00735807]
[1765354802370,5.58554593,3331.8,3331.7,0.00735807]
[1765354804676,1.4499,3331.1,3331.0,4.9821]
[1765354804878,0.7163,3331.1,3331.0,4.9821]
[1765354805377,1.4499,3331.1,3331.0,4.9821]
[1765354805781,3.92718852,3331.8,3331.7,1.3585]
[1765354806281,0.00308852,3331.8,3331.7,1.3585]
[1765354807272,0.7208039,3332.4,3332.3,1.3585]
[1765354807480,0.0045039,3332.4,3332.3,1.3585]
[1765354808168,0.00791064,3332.4,3332.3,1.3585]
[1765354808575,0.00791064,3332.4,3332.3,7.3585]
[1765354812083,0.00791064,3332.4,3332.3,8.28325741]
[1765354814385,0.00791064,3332.4,3332.3,12.00340128]
[1765354817386,3.2078,3333.0,3332.9,1.3883]
[1765354817587,5.59805741,3333.5,3333.4,0.7082]
[1765354817881,4.5900007,3333.5,3333.4,1.3883]
[1765354818183,1.4655,3333.2,3333.1,1.3883]
[1765354818386,1.46770956,3333.2,3333.1,0.71177246]
[1765354818985,0.74380956,3333.2,3333.1,4.59967246]
[1765354819392,0.00220956,3333.2,3333.1,4.59967246]
[1765354821795,0.0045039,3333.5,3333.4,1.3883]
[1765354821989,0.0045039,3333.5,3333.4,2.31305741]
[1765354822295,0.0045039,3333.5,3333.4,1.3883]
[1765354823090,0.00661687,3333.5,3333.4,1.3883]
[1765354823791,1.687e-05,3333.5,3333.4,1.3883]
[1765354823992,1.687e-05,3333.5,3333.4,1.5383]
[1765354824190,0.7416,3334.1,3334.0,1.8149]
[1765354824585,2.39025741,3334.1,3334.0,1.8149]
[1765354824795,2.39025741,3334.1,3334.0,1.1348]
[1765354824999,2.39025741,3334.1,3334.0,1.8149]
[1765354825190,2.39235943,3334.1,3334.0,1.8149]
[1765354825392,1.66845943,3334.1,3334.0,1.8149]
[1765354825797,0.00210202,3334.1,3334.0,1.8149]
[1765354827089,1.66845943,3334.1,3334.0,1.8149]
[1765354827804,0.00210202,3334.1,3334.0,1.8149]
[1765354829702,2.02e-06,3334.1,3334.0,1.8149]
[1765354830197,3.2078,3334.8,3334.7,1.3883]
[1765354830395,5.59805741,3334.8,3334.7,0.7082]
[1765354830598,0.7416,3334.2,3334.1,0.85816]
[1765354830797,4.13255741,3334.8,3334.4,0.7082]
[1765354830798,2.39025741,3334.5,3334.4,0.7082]
[1765354831096,2.39025741,3334.5,3334.4,1.3883]
[1765354831290,2.392795,3334.5,3334.4,1.3883]
[1765354832702,1.668895,3334.5,3334.4,1.3883]
[1765354834896,0.74413759,3334.5,3334.4,1.3883]
[1765354835096,1.46803759,3334.5,3334.0,0.4266]
[1765354835405,2.39025741,3334.4,3334.3,0.7082]
[1765354835703,1.4655,3334.1,3334.0,1.8149]
[1765354835896,0.7416,3334.1,3334.0,1.8149]
[1765354836404,2.39025741,3334.1,3334.0,1.1348]
[1765354836603,2.39025741,3334.1,3334.0,0.4266]
[1765354837294,2.39025741,3334.1,3334.0,1.1348]
[1765354838597,2.39025741,3334.1,3334.0,0.4266]
[1765354839105,1.4042,3334.0,3333.9,3.2078]
[1765354839401,2.32895741,3334.0,3333.9,3.2078]
[1765354839601,2.32895741,3334.0,3333.5,4.29673387]
[1765354839602,1.4042,3333.2,3333.1,1.46477246]
[1765354839799,2.32895741,3333.2,3333.1,1.46477246]
[1765354840005,2.32895741,3333.2,3333.1,0.00357246]
[1765354840006,1.4042,3333.2,3333.1,0.00357246]
[1765354840198,2.32895741,3333.2,3333.1,0.00357246]
[1765354840703,1.4042,3333.2,3333.1,0.00357246]
[1765354840906,3.2078,3333.4,3332.5,0.4266]
[1765354840907,1.4042,3332.9,3332.5,0.4266]
[1765354841202,1.4042,3332.1,3332.0,1.8879]
[1765354842107,1.40691397,3332.1,3332.0,1.89121489]
[1765354843513,1.40691397,3332.1,3332.0,0.00331489]
[1765354845508,4.61471397,3332.1,3332.0,0.00331489]
[1765354847799,4.61471397,3332.1,3331.7,0.0045039]
[1765354847800,3.21051397,3332.1,3331.7,0.7261]
[1765354848000,0.6865,3331.1,3331.0,3.6345]
[1765354848201,0.6865,3331.1,3331.0,1.8879]
[1765354848202,1.4042,3331.1,3331.0,1.8879]
[1765354848912,0.6865,3331.1,3331.0,1.89076758]
[1765354850514,1.4042,3331.1,3331.0,1.89076758]
[1765354851413,3.8943,3331.3,3331.2,1.4612]
[1765354851912,4.612,3331.3,3331.2,0.7261]
[1765354852122,4.612,3331.3,3331.0,1.89076758]
[1765354852123,1.4042,3331.1,3331.0,1.89076758]
[1765354852713,1.4042,3331.1,3331.0,0.00286758]
[1765354853912,3.2078,3331.3,3330.7,0.0045039]
[1765354853913,1.4042,3330.8,3330.7,0.0045039]
[1765354854115,4.612,3330.8,3330.7,0.0045039]
[1765354854315,4.612,3330.8,3330.7,0.7306039]
[1765354854919,3.2078,3330.8,3330.7,1.46921462]
[1765354855122,3.8943,3330.8,3330.7,1.46921462]
[1765354855716,3.2078,3330.8,3330.7,1.46921462]
[1765354855913,3.8943,3330.8,3330.7,1.46921462]
[1765354856113,4.612,3330.8,3330.7,1.46921462]
[1765354856419,4.612,3330.8,3330.7,0.73411462]
[1765354857515,4.612,3330.8,3330.7,1.46921462]
[1765354860423,4.612,3330.8,3330.7,0.73411462]
[1765354861117,4.612,3330.8,3330.7,1.46921462]
[1765354861919,4.612,3330.8,3330.7,0.00801462]
[1765354862822,4.612,3330.8,3330.7,1.46921462]
[1765354863020,3.2078,3330.8,3330.7,1.46921462]
[1765354863212,3.8943,3330.8,3330.7,1.46921462]
[1765354864220,4.612,3330.8,3330.7,1.46921462]
[1765354864723,4.612,3330.8,3330.7,0.73411462]
[1765354865021,4.612,3330.8,3330.7,0.00801462]
[1765354865524,1.4042,3330.1,3330.0,0.4267]
[1765354865727,1.4042,3329.8,3329.7,1.4612]
[1765354865925,1.4042,3329.8,3329.7,0.7261]
[1765354866126,1.4042,3329.8,3329.7,1.4612]
[1765354866616,0.0045039,3330.1,3330.0,1.8879]
[1765354874836,0.0045039,3330.1,3330.0,2.03805]
[1765354875132,0.7255039,3330.1,3330.0,2.03805]
[1765354875932,0.0045039,3330.1,3330.0,2.03805]
[1765354877035,0.0045039,3330.1,3329.7,1.37780664]
[1765354877036,1.462,3329.8,3329.7,1.37780664]
[1765354877530,0.721,3329.8,3329.7,1.52796664]
[1765354877930,0.7255039,3330.1,3330.0,1.8111]
[1765354879136,0.7255039,3330.1,3330.0,1.96125]
[1765354880532,0.0045039,3330.1,3330.0,1.96125]
[1765354890946,3.9e-06,3330.1,3330.0,5.16905]
[1765354891137,0.64148987,3331.0,3330.9,1.3743]
[1765354891338,0.64148987,3331.1,3331.0,1.8111]
[1765354891639,0.64148987,3331.5,3331.0,1.9612]
[1765354891842,2.25162861,3331.6,3331.0,1.9612]
[1765354892340,2.10348987,3331.5,3331.4,1.3743]
[1765354893444,1.36248987,3331.5,3331.4,1.3743]
[1765354893641,2.10348987,3331.5,3331.2,0.15009]
[1765354893843,2.10348987,3331.5,3329.5,5.34917514]
[1765354893844,1.462,3330.3,3330.2,1.60674519]
[1765354894138,1.462,3330.1,3330.0,1.1163]
[1765354894338,1.462,3330.1,3330.0,0.4368]
[1765354894339,4.6698,3330.1,3330.0,0.4368]
[1765354894544,4.6698,3330.1,3330.0,1.1163]
[1765354894944,4.6698,3330.1,3330.0,1.8111]
[1765354895243,4.6698,3330.1,3330.0,1.96125]
[1765354897848,3.9288,3330.1,3330.0,1.96125]
[1765354898145,4.6412,3330.6,3330.5,1.8226]
[1765354898350,2.0747601,3330.6,3330.5,1.8226]
[1765354898542,0.7061,3330.6,3330.5,1.8226]
[1765354898849,4.6412,3331.0,3330.9,0.6904]
[1765354899049,5.28250732,3331.0,3330.5,0.4447]
[1765354899349,1.34740732,3330.9,3330.8,1.3779]
[1765354899544,3.9139,3331.0,3330.9,1.3779]
[1765354899848,5.28243033,3331.0,3330.9,1.3779]
[1765354900442,4.6412,3331.0,3330.9,1.3779]
[1765354901448,3.2078,3331.0,3330.9,1.3779]
[1765354902551,4.6412,3331.4,3331.3,1.3779]
[1765354902847,0.0045039,3331.6,3331.5,1.8226]
[1765354902848,0.7106039,3331.6,3331.5,1.8226]
[1765354903052,1.35139593,3331.6,3331.5,1.8226]
[1765354903253,0.7106039,3331.6,3331.5,1.8226]
[1765354903449,0.0045039,3331.6,3331.5,1.8226]
[1765354904855,1.4379039,3331.6,3331.5,1.8226]
[1765354905554,1.4334,3331.2,3331.1,3.2078]
[1765354905763,1.4334,3331.1,3331.0,1.1351]
[1765354906647,1.4334,3330.8,3330.7,1.52801]
[1765354907154,0.7061,3330.8,3330.7,1.52801]
[1765354907754,1.4334,3330.8,3330.7,1.3779]
[1765354909456,0.7061,3330.8,3330.7,1.3779]
[1765354909654,1.4334,3330.8,3330.7,1.3779]
[1765354914459,1.4334,3330.6,3330.5,1.1351]
[1765354914660,1.4334,3330.6,3329.8,1.60674519]
[1765354914661,0.7273,3330.1,3329.8,1.60674519]
[1765354914955,4.6412,3329.9,3329.8,1.3779]
[1765354915158,4.6412,3329.9,3329.8,0.6904]
[1765354915355,1.4334,3329.8,3329.7,0.69390664]
[1765354915563,1.4334,3329.8,3329.7,0.00350664]
[1765354916164,1.4334,3329.8,3329.7,1.38140664]
[1765354917658,3.9139,3329.9,3329.8,1.3779]
[1765354917860,4.6412,3330.6,3330.5,1.8226]
[1765354918161,3.2078,3330.6,3330.5,1.8226]
[1765354918563,3.9139,3330.6,3330.5,1.8226]
[1765354918764,4.6412,3330.6,3330.5,1.8226]
[1765354920659,4.6412,3331.0,3330.9,1.3779]
[1765354921564,0.7061,3330.6,3330.5,1.97273]
[1765354921966,4.6412,3331.0,3330.9,1.3779]
[1765354923366,4.6412,3331.0,3330.9,0.6904]
[1765354923866,4.6412,3331.0,3330.9,1.3779]
[1765354925369,4.6412,3331.0,3330.9,0.6904]
[1765354926268,0.7061,3330.6,3330.5,1.97273]
[1765354926568,4.6412,3331.0,3330.9,0.6904]
[1765354928069,4.6412,3331.0,3330.5,0.59483]
[1765354928368,0.7101,3330.6,3330.5,1.96593]
[1765354928963,4.6032,3330.6,3330.5,0.59483]
[1765354929162,0.7101,3330.2,3330.1,6.69798906]
[1765354929364,3.2078,3330.6,3330.1,5.24138387]
[1765354929568,3.2078,3330.6,3330.5,1.8003]
[1765354931773,3.9179,3330.6,3330.5,1.8003]
[1765354932072,4.6241,3330.6,3330.5,1.8003]
[1765354932473,4.6241,3330.6,3330.5,1.1312]
[1765354932674,1.427,3330.4,3330.3,0.82093]
[1765354932874,1.427,3330.4,3330.3,1.49283]
[1765354933375,1.427,3330.4,3330.3,0.82093]
[1765354933571,1.427,3330.4,3330.3,1.49283]
[1765354934777,1.427,3330.4,3330.3,0.82093]
[1765354935172,1.427,3330.4,3330.3,0.15013]
[1765354935575,1.427,3330.4,3330.3,0.82093]
[1765354935977,1.427,3330.4,3330.3,0.15013]
[1765354936175,1.427,3330.1,3330.0,3.39414519]
[1765354936375,1.427,3330.1,3330.0,1.7874]
[1765354936571,1.427,3330.1,3330.0,1.1155]
[1765354936876,3.2078,3330.6,3330.0,1.7655]
[1765354937181,3.2078,3330.6,3330.0,1.91564]
[1765354937378,0.7208,3330.2,3330.1,4.70064]
[1765354937678,0.7208,3330.4,3330.3,1.49283]
[1765354937880,0.7208,3330.5,3330.4,1.49283]
[1765354938676,4.6348,3331.0,3330.9,0.6708]
[1765354938882,4.55508134,3331.0,3330.9,0.6708]
[1765354939076,5.27588134,3331.0,3330.9,0.6708]
[1765354939282,5.27588134,3331.0,3330.9,1.3427]
[1765354939982,5.27588134,3331.0,3330.9,0.6708]
[1765354940178,2.06808134,3331.0,3330.9,0.6708]
[1765354940586,1.427,3330.8,3330.7,1.49281]
[1765354942684,1.427,3330.8,3330.7,0.82091]
[1765354943187,1.427,3330.8,3330.7,0.15011]
[1765354943384,1.427,3330.8,3330.7,0.82091]
[1765354943587,1.427,3330.8,3330.7,1.49281]
[1765354943783,1.427,3330.8,3330.7,0.82091]
[1765354943986,1.427,3330.8,3330.7,0.15011]
[1765354945484,1.427,3330.4,3330.3,0.6708]
[1765354945682,1.427,3330.2,3330.1,2.94944519]
[1765354945881,1.427,3330.2,3330.1,1.60674519]
[1765354946081,0.2737,3330.5,3330.0,1.24375]
[1765354946082,1.427,3330.1,3330.0,1.24375]
[1765354946281,3.2078,3330.6,3330.5,0.6708]
[1765354946282,3.9286,3330.6,3330.5,0.6708]
[1765354946583,5.27643489,3330.6,3330.5,0.6708]
[1765354946982,5.27643489,3330.6,3330.0,2.02954519]
[1765354947183,0.7208,3330.2,3330.1,2.94944519]
[1765354947386,1.427,3330.2,3330.1,2.94944519]
[1765354947984,1.427,3330.1,3330.0,2.70034519]
[1765354948485,1.427,3330.1,3330.0,1.60674519]
[1765354948687,1.427,3330.1,3330.0,3.37224519]
[1765354949681,3.2078,3330.6,3330.0,1.7655]
[1765354949881,0.64195072,3330.5,3330.1,1.61026305]
[1765354950190,2.06895072,3330.5,3330.4,0.6708]
[1765354950383,2.06895072,3330.5,3330.1,1.61026305]
[1765354950587,0.7208,3330.2,3330.1,2.95296305]
[1765354951289,1.427,3330.2,3330.1,2.95296305]
[1765354951690,1.427,3330.2,3330.1,2.28106305]
[1765354951891,1.427,3330.2,3330.1,1.61026305]
[1765354952294,1.427,3330.1,3330.0,3.52591305]
[1765354952689,1.427,3330.1,3330.0,2.85401305]
[1765354952885,1.427,3330.1,3330.0,1.76041305]
[1765354953493,1.427,3330.1,3330.0,2.43121305]
[1765354953790,0.7208,3330.1,3330.0,3.52591305]
[1765354954096,3.2078,3330.6,3330.0,3.52591305]
[1765354954290,2.06885487,3330.5,3330.4,0.6708]
[1765354954490,0.7208,3330.1,3330.0,3.52591305]
[1765354955095,1.427,3330.1,3330.0,3.52591305]
[1765354955594,0.7208,3330.1,3330.0,3.52591305]
[1765354955794,1.427,3330.1,3330.0,3.52591305]
[1765354956191,1.427,3330.1,3330.0,2.85401305]
[1765354956401,1.427,3330.1,3330.0,1.76041305]
[1765354957488,3.2078,3330.6,3330.0,3.54591305]
[1765354957697,0.64185281,3330.5,3330.0,3.54591305]
[1765354957995,1.3858,3330.1,3330.0,3.54591305]
[1765354958383,1.3858,3330.1,3330.0,1.76041305]
[1765354959294,1.3858,3330.1,3330.0,2.43691305]
[1765354959995,1.3858,3330.1,3330.0,1.76041305]
[1765354960791,1.3858,3330.1,3330.0,3.55161305]
[1765354960997,3.2078,3330.6,3330.0,3.55161305]
[1765354961196,2.02763599,3330.5,3330.4,1.3886]
[1765354961496,1.3858,3330.5,3330.4,1.3886]
[1765354961696,4.5936,3331.0,3330.9,0.6765]
[1765354961991,2.0275801,3331.0,3330.9,2.31457629]
[1765354962192,0.7067039,3331.6,3331.5,1.7912]
[1765354962396,1.3903039,3331.6,3331.5,1.7912]
[1765354962592,0.0045039,3331.6,3331.5,1.7912]
[1765354962798,1.3903039,3331.6,3331.5,1.7912]
[1765354963092,1.3903039,3331.6,3331.5,2.71717629]
[1765354963296,1.3858,3331.3,3331.2,0.6765]
[1765354963496,1.3858,3331.2,3331.1,0.6765]
[1765354964201,1.3858,3331.1,3331.0,1.0791]
[1765354964497,1.3858,3331.1,3331.0,1.7912]
[1765354967091,0.7022,3331.1,3331.0,1.7912]
[1765354967297,0.0045039,3331.6,3331.0,1.7912]
[1765354967598,1.3903039,3331.6,3331.5,1.0791]
[1765354967997,1.3858,3331.2,3331.1,1.3886]
[1765354969307,0.7022,3331.2,3331.1,1.3886]
[1765354971097,1.3858,3331.2,3331.1,1.3886]
[1765354971302,1.3858,3331.2,3331.1,0.6765]
[1765354971602,1.3858,3331.1,3331.0,1.7912]
[1765354972002,0.7022,3331.1,3331.0,1.7912]
[1765354972400,1.3858,3330.9,3330.8,3.2078]
[1765354972602,0.7022,3330.3,3330.2,1.53874]
[1765354972804,3.2078,3330.9,3330.2,1.53874]
[1765354973299,4.5936,3330.9,3330.8,0.6765]
[1765354973496,1.3858,3330.9,3330.8,1.3886]
[1765354973705,3.2078,3331.3,3331.2,0.6765]
[1765354973706,4.5936,3331.3,3331.2,0.6765]
[1765354973901,1.3858,3331.1,3330.5,4.53575223]
[1765354974104,3.2078,3331.3,3330.5,5.92435223]
[1765354974805,3.91,3331.3,3331.2,0.6765]
[1765354975007,0.6925,3330.6,3330.5,5.0122]
[1765354975304,3.2078,3331.3,3330.5,5.0122]
[1765354975504,0.64093414,3331.2,3330.5,5.0122]
[1765354977308,2.05503414,3331.2,3331.1,0.7063]
[1765354977497,2.05503414,3331.2,3331.1,1.4018]
[1765354977907,1.4141,3331.2,3331.1,1.4018]
[1765354978303,2.05511043,3331.2,3331.1,0.7063]
[1765354979507,2.05511043,3331.2,3331.1,1.4018]
[1765354979710,2.05511043,3331.2,3331.1,0.7063]
[1765354980308,2.05511043,3331.2,3331.1,1.4018]
[1765354980507,1.4186039,3331.6,3331.0,0.4281]
[1765354980713,4.6219,3331.3,3331.2,1.4018]
[1765354981208,4.6219,3331.3,3331.2,0.7063]
[1765354981400,1.4141,3331.1,3331.0,1.8299]
[1765354982012,1.4141,3331.1,3331.0,1.1344]
[1765354982612,3.9003,3331.3,3331.2,1.4018]
[1765354982807,4.6219,3331.3,3331.2,1.4018]
[1765354983504,3.2078,3331.7,3331.5,1.8299]
[1765354983707,3.2078,3331.7,3331.6,1.4018]
[1765354983901,3.2078,3332.5,3332.4,1.4018]
[1765354984107,2.05500793,3332.5,3332.4,0.7063]
[1765354984314,1.4141,3332.5,3332.4,0.7063]
[1765354984512,2.05479373,3332.5,3332.4,0.7063]
[1765354984810,0.0045039,3332.8,3332.4,1.4018]
[1765354985115,0.0045039,3332.8,3332.7,0.7063]
[1765354985116,4.63013678,3332.8,3332.7,0.7063]
[1765354985506,4.63013678,3332.8,3332.7,1.4018]
[1765354987718,4.63013678,3332.8,3332.7,0.7063]
[1765354988808,1.4376,3332.6,3332.5,1.7861]
[1765354989006,1.4376,3332.6,3332.4,0.00381773]
[1765354989007,1.4376,3332.5,3332.4,0.00381773]
[1765354990416,1.7394,3332.5,3332.4,0.00381773]
[1765354992015,1.4376,3332.5,3332.4,0.00381773]
[1765354994117,1.7395,3332.5,3332.4,0.00381773]
[1765354994420,1.7395,3332.5,3332.4,1.773e-05]
[1765354995817,1.3601,3331.6,3331.0,0.5782]
[1765354996017,4.5679,3331.5,3331.4,0.7014]
[1765354996216,4.5679,3331.5,3331.4,1.4174]
[1765354996519,1.3601,3331.1,3331.0,1.8455]
[1765354996721,0.6832,3331.1,3331.0,1.8455]
[1765354996921,3.2078,3331.5,3331.0,1.8455]
[1765354996922,3.2078,3331.5,3331.0,1.84774244]
[1765354997119,4.5679,3331.5,3331.4,0.7014]
[1765354998618,4.5679,3331.5,3331.4,1.4174]
[1765354998619,3.2078,3331.5,3331.4,1.4174]
[1765354998825,4.5679,3331.9,3331.8,1.4174]
[1765354999222,1.3601,3331.6,3331.5,1.8257]
[1765354999423,1.3601,3331.1,3331.0,1.84774244]
[1765355000125,0.6832,3331.1,3331.0,1.84774244]
[1765355001325,4.5679,3331.3,3331.2,1.4174]
[1765355001525,1.3601,3331.1,3331.0,1.13174244]
[1765355001823,1.3601,3331.1,3331.0,1.84774244]
[1765355002024,0.6832,3331.1,3331.0,1.84774244]
[1765355002221,3.2078,3331.3,3331.2,1.4174]
[1765355002425,3.891,3331.3,3331.2,1.4174]
[1765355002629,4.5679,3331.3,3331.2,1.4174]
[1765355003123,3.891,3331.3,3331.2,1.4174]
[1765355003424,3.2078,3331.3,3331.2,1.4174]
[1765355004327,3.891,3331.3,3331.2,1.4174]
[1765355005226,4.5679,3331.3,3331.2,1.4174]
[1765355006128,1.3601,3331.1,3331.0,1.13174244]
[1765355006727,1.3601,3331.1,3331.0,1.84774244]
[1765355008929,1.3601,3331.1,3331.0,1.13174244]
[1765355009124,1.3601,3331.1,3331.0,0.00224244]
[1765355009325,1.3601,3331.1,3331.0,0.70364244]
[1765355009829,1.3601,3331.1,3331.0,1.11194244]
[1765355010128,1.3601,3331.1,3331.0,1.82794244]
[1765355014740,1.3601,3331.1,3331.0,1.11194244]
[1765355014937,1.3601,3331.1,3331.0,1.82794244]
[1765355015243,0.6832,3331.1,3331.0,1.82794244]
[1765355015439,1.3601,3331.1,3331.0,1.82794244]
[1765355017837,0.6832,3331.1,3331.0,1.82794244]
[1765355019046,4.6262,3331.3,3331.2,1.4249]
[1765355020152,3.8997,3331.3,3331.2,1.4249]
[1765355020454,4.6262,3331.3,3331.2,1.4249]
[1765355021252,3.8997,3331.3,3331.2,1.4249]
[1765355021547,4.6262,3331.3,3331.2,1.4249]
[1765355021755,4.6262,3331.3,3331.2,0.7133]
[1765355022147,4.6262,3331.3,3331.2,1.4249]
[1765355023253,5.26888815,3331.3,3331.2,1.4249]
[1765355023454,5.26888815,3331.3,3331.2,0.7133]
[1765355024644,5.26888815,3331.3,3331.2,1.4249]
[1765355024851,4.54238815,3331.3,3331.2,1.4249]
[1765355030260,5.26888815,3331.3,3331.2,0.7133]
[1765355030761,5.26888815,3331.3,3331.2,1.4249]
[1765355031361,1.4184,3331.1,3331.0,1.12384244]
[1765355031563,1.4184,3331.1,3331.0,1.83544244]
[1765355032162,2.06057338,3331.1,3331.0,0.00224244]
[1765355033758,2.06057338,3331.1,3331.0,0.71554244]
[1765355034369,2.06057338,3331.1,3331.0,1.12774244]
[1765355034567,2.06057338,3331.1,3331.0,1.83934244]
[1765355036065,0.64217338,3331.1,3331.0,1.98944244]
[1765355036265,2.06057338,3331.7,3331.6,0.7133]
[1765355036468,1.4184,3331.6,3331.0,0.56454244]
[1765355036668,4.6262,3331.3,3331.2,1.4249]
[1765355036870,5.26837338,3331.3,3331.2,1.4249]
[1765355037264,4.54187338,3331.3,3331.2,1.4249]
[1765355038262,3.84997338,3331.3,3331.2,1.4249]
[1765355038671,0.64217338,3331.3,3331.2,1.4249]
[1765355038866,3.2078,3331.8,3331.6,1.4249]
[1765355038867,2.06057338,3331.7,3331.6,1.4249]
[1765355039075,1.33407338,3331.7,3331.6,2.3501809]
[1765355041175,2.06057338,3331.7,3331.6,2.3501809]
[1765355041368,1.4184,3331.7,3331.6,2.3501809]
[1765355041769,1.4184,3331.7,3331.6,1.4249]
[1765355042170,1.4184,3331.3,3331.2,0.86339]
[1765355042471,1.4184,3331.3,3331.2,1.57499]
[1765355043271,0.6919,3331.3,3331.2,1.57499]
[1765355044169,2.06008668,3331.7,3331.6,0.7133]
[1765355044375,2.06008668,3331.7,3331.6,1.4249]
[1765355044572,1.33358668,3331.7,3331.6,1.4249]
[1765355044968,2.06008668,3331.7,3331.6,1.4249]
[1765355045274,2.06008668,3331.7,3331.6,0.7133]
[1765355045473,1.4184,3331.6,3331.5,1.1255]
[1765355045774,1.4184,3331.4,3331.3,1.57499]
[1765355047076,1.4184,3331.4,3331.3,0.15009]
[1765355047274,1.4184,3331.4,3331.3,0.86339]
[1765355047778,1.4184,3331.4,3331.3,1.57499]
[1765355048478,1.4184,3331.4,3331.3,0.86339]
[1765355048776,1.4184,3331.4,3331.3,1.56159]
[1765355050081,0.6919,3331.4,3331.3,1.56159]
[1765355050381,1.4297,3331.4,3331.3,1.56159]
[1765355051782,3.938,3331.8,3331.7,1.3995]
[1765355052080,4.57939578,3331.8,3331.7,1.3995]
[1765355052285,0.64139578,3331.8,3331.7,1.3995]
[1765355052579,0.6768,3332.2,3332.1,1.463]
[1765355052769,3.2078,3332.3,3332.2,1.463]
[1765355052975,4.52587114,3332.3,3332.2,1.463]
[1765355053181,3.8846,3332.3,3332.2,1.463]
[1765355054679,0.6768,3332.3,3332.2,1.463]
[1765355055075,0.64061336,3332.7,3332.2,1.463]
[1765355055477,2.01801336,3332.7,3332.6,0.7393]
[1765355056182,2.01801336,3332.7,3332.6,1.463]
[1765355056775,2.01801336,3332.7,3332.6,0.7393]
[1765355056973,1.3774,3332.3,3332.2,0.15005]
[1765355057287,4.5852,3332.3,3332.2,0.88935]